bitfinex/quotes_ETHUSD_20240928
["timestamp","ask_amount","ask_price","bid_price","bid_amount"]
[1727503919961,1.25396994,2684.8,2684.7,7.1073655]
[1727503920388,1.16309527,2684.8,2684.7,9.18043605]
[1727503921392,1.16309527,2684.8,2684.7,8.0067655]
[1727503924601,0.77528312,2684.8,2684.7,8.0067655]
[1727503924961,1.16309527,2684.9,2684.8,3.72467]
[1727503925189,1.1629288,2684.9,2684.8,3.72467]
[1727503925395,1.25408437,2684.9,2684.8,3.72467]
[1727503925580,0.09115557,2684.9,2684.8,3.72467]
[1727503926102,1.25398752,2684.9,2684.8,3.72467]
[1727503926400,0.09115557,2684.9,2684.8,3.72467]
[1727503926786,1.25396907,2684.9,2684.8,3.72467]
[1727503926962,1.25396907,2684.9,2684.7,3.72481]
[1727503927166,1.25396907,2684.9,2684.7,3.72473]
[1727503927167,1.1628135,2684.8,2684.7,3.72473]
[1727503927706,1.54943808,2684.8,2684.7,3.72473]
[1727503927998,1.93798017,2685.0,2684.7,3.72473]
[1727503927999,1.54943808,2684.9,2684.7,3.72473]
[1727503928379,1.54943808,2684.8,2684.7,3.72473]
[1727503928712,1.54943808,2684.9,2684.7,3.72473]
[1727503928999,1.1626059,2684.8,2684.7,3.72473]
[1727503929198,1.54943808,2684.9,2684.7,3.72473]
[1727503929706,1.54943808,2684.8,2684.7,3.72473]
[1727503931162,1.16278417,2684.8,2684.7,7.1072855]
[1727503931490,0.77527181,2685.1,2685.0,3.72439]
[1727503931695,2.71222225,2685.2,2685.1,3.72425]
[1727503931696,0.77527181,2685.2,2685.1,3.72425]
[1727503932067,1.16278417,2685.2,2685.1,3.72425]
[1727503932564,1.16278417,2685.2,2685.1,4.62635]
[1727503933806,1.16278417,2685.3,2685.2,3.72411]
[1727503934013,1.54943808,2685.4,2685.3,3.72397]
[1727503935363,1.63733026,2685.4,2685.3,4.62607]
[1727503935700,0.08789218,2685.4,2685.3,5.65566079]
[1727503935906,0.86275081,2685.4,2685.3,5.65566079]
[1727503936203,0.08789218,2685.4,2685.3,5.65566079]
[1727503936777,0.77485863,2685.6,2685.5,3.7237]
[1727503937109,0.77485863,2685.6,2685.5,7.1062555]
[1727503938104,0.77485863,2685.7,2685.5,7.1062555]
[1727503938308,0.77485863,2685.7,2685.6,3.72356]
[1727503939004,0.77485863,2685.7,2685.6,5.52639461]
[1727503939005,0.86323743,2685.7,2685.6,5.52639461]
[1727503939183,0.0883788,2685.7,2685.6,5.52639461]
[1727503939505,0.77485863,2686.0,2685.9,3.72314]
[1727503939831,8.51211398,2686.2,2686.0,4.6251]
[1727503939832,0.77388632,2686.1,2686.0,4.6251]
[1727503940106,0.77388632,2686.4,2686.2,3.72273]
[1727503940279,0.77350199,2686.4,2686.3,1.56008607]
[1727503941029,0.77350199,2686.4,2686.3,5.28267607]
[1727503941307,0.77350199,2686.6,2686.5,3.72231]
[1727503941476,0.77350199,2686.6,2686.5,5.28239607]
[1727503941677,0.77350199,2686.6,2686.5,1.56008607]
[1727503942189,0.77350199,2686.8,2686.5,7.10010155]
[1727503942392,0.77350199,2686.8,2686.6,3.72217]
[1727503942706,0.08719676,2686.7,2686.5,8.00220155]
[1727503943014,0.08719676,2686.7,2686.6,3.72217]
[1727503943190,0.77350199,2686.9,2686.6,3.72217]
[1727503943410,0.8414,2687.0,2686.6,3.72217]
[1727503943411,0.08725806,2686.7,2686.6,3.72217]
[1727503943583,1.61490199,2687.0,2686.9,3.72176]
[1727503943780,1.16211398,2687.1,2686.7,3.722]
[1727503943781,0.77350199,2687.1,2686.8,3.72188]
[1727503944165,0.77350199,2687.2,2686.7,7.09971155]
[1727503944381,3.72148,2687.1,2686.5,8.02212155]
[1727503944607,0.82350205,2687.0,2686.5,0.02]
[1727503944773,0.8414,2686.6,2686.5,0.02]
[1727503944973,4.56357,2686.6,2686.5,0.02]
[1727503945214,1.66315196,2686.6,2686.5,0.02]
[1727503945410,4.61357006,2686.6,2686.5,0.02]
[1727503945611,5.77568404,2686.6,2686.5,0.02]
[1727503946922,8.77568404,2686.6,2686.5,0.02]
[1727503947095,7.56357,2686.6,2686.5,0.02]
[1727503947417,7.61357006,2686.6,2686.5,0.02]
[1727503947621,10.16357006,2686.6,2686.5,0.02]
[1727503947809,10.11357,2686.6,2686.5,0.02]
[1727503948620,9.56357,2686.6,2686.5,0.02]
[1727503950799,7.56357,2686.6,2686.5,0.02]
[1727503950999,7.61357006,2686.6,2686.5,0.02]
[1727503953140,9.54261222,2686.6,2686.5,0.02]
[1727503953321,9.49261216,2686.6,2686.5,0.02]
[1727503954525,9.10702418,2686.6,2686.5,0.02]
[1727503954730,7.56357,2686.6,2686.5,0.02]
[1727503955017,5.77131214,2686.6,2686.5,0.02]
[1727503955219,3.77217006,2686.6,2686.5,0.02]
[1727503955436,4.92991214,2686.6,2686.5,0.02]
[1727503956140,5.80311214,2686.6,2686.5,0.02]
[1727503956323,6.18923131,2686.6,2686.5,0.02]
[1727503956509,4.64537006,2686.6,2686.5,0.02]
[1727503956716,6.18942556,2686.6,2686.5,0.02]
[1727503957029,1.15809668,2686.6,2686.5,0.02]
[1727503957228,0.77210071,2686.6,2686.5,0.02]
[1727503957448,0.77210071,2686.7,2686.5,0.02]
[1727503962449,0.77210071,2686.8,2686.6,0.8969]
[1727503962753,0.77210071,2686.9,2686.6,7.99686155]
[1727503962946,1.15809668,2687.1,2686.6,7.99686155]
[1727503962947,0.77210071,2687.0,2686.6,9.17078471]
[1727503963175,0.77210071,2687.1,2686.7,3.7219]
[1727503963397,0.77210071,2687.1,2686.6,8.01677155]
[1727503963673,0.77210071,2687.0,2686.7,3.72194]
[1727503963871,0.77210071,2687.1,2686.6,8.01677155]
[1727503964083,0.77210071,2687.0,2686.6,8.01677155]
[1727503964376,0.77210071,2687.1,2686.6,8.01677155]
[1727503964577,0.77210071,2687.1,2686.7,3.72203]
[1727503964880,0.77210071,2687.1,2686.6,8.01677155]
[1727503965073,0.77210071,2687.1,2686.7,3.72196]
[1727503965946,0.77210071,2687.1,2686.6,8.8184187]
[1727503966668,4.49360071,2687.1,2686.6,8.8184187]
[1727503967474,0.77210071,2687.0,2686.6,8.8184187]
[1727503969159,0.77210071,2686.9,2686.6,8.8184187]
[1727503969371,0.77210071,2687.0,2686.6,8.01674155]
[1727503970154,0.77210071,2687.0,2686.7,3.72203]
[1727503970466,0.77210071,2687.0,2686.9,0.8354]
[1727503970652,0.77210071,2687.2,2686.9,4.55712]
[1727503970849,0.77210071,2687.2,2687.0,3.72159]
[1727503971067,0.77210071,2687.4,2687.0,10.82088155]
[1727503971352,0.77210071,2687.5,2687.1,3.72146]
[1727503971552,0.77210071,2687.4,2687.1,3.72146]
[1727503972153,0.77210071,2687.4,2687.0,7.55501055]
[1727503973489,0.77210071,2687.4,2687.1,2.04660506]
[1727503973663,0.77210071,2687.4,2687.1,0.8354]
[1727503974999,0.08824253,2687.3,2687.1,0.8554]
[1727503975992,0.86034324,2687.3,2687.1,0.8554]
[1727503976570,0.08824253,2687.3,2687.1,0.8554]
[1727503977063,0.08824253,2687.3,2687.2,3.37779155]
[1727503977264,0.86034324,2687.3,2687.2,3.37779155]
[1727503977478,0.08824253,2687.3,2687.2,7.11913155]
[1727503977675,0.77210071,2687.6,2687.3,3.72118]
[1727503977878,0.08253727,2687.5,2687.3,1.27100779]
[1727503978088,0.08253727,2687.5,2687.3,4.99220779]
[1727503978406,0.08253727,2687.5,2687.4,0.8354]
[1727503978611,0.85463798,2687.5,2687.4,0.8354]
[1727503978971,0.08253727,2687.5,2687.4,0.8354]
[1727503979509,0.08253727,2687.5,2687.2,7.95446155]
[1727503979670,0.08253727,2687.5,2687.3,1.16758216]
[1727503979866,0.08253727,2687.5,2687.2,7.95446155]
[1727503980198,0.85463798,2687.5,2687.2,7.95446155]
[1727503981009,0.85463798,2687.5,2687.2,4.23319155]
[1727503981709,0.77210071,2687.3,2687.2,4.23319155]
[1727503983084,0.77210071,2687.3,2687.2,0.8554]
[1727503983822,0.77210071,2687.4,2687.2,0.8554]
[1727503984327,0.77210071,2687.3,2687.2,0.8554]
[1727503984505,0.77210071,2687.4,2687.2,0.8554]
[1727503986881,0.85466286,2687.4,2687.2,0.8554]
[1727503987085,0.77210071,2687.3,2687.2,0.8554]
[1727503989680,4.92929674,2687.3,2687.2,0.8554]
[1727503989887,5.31525556,2687.3,2687.2,0.8554]
[1727503990234,5.70561436,2687.3,2687.2,0.8554]
[1727503990415,6.09249722,2687.3,2687.2,0.8554]
[1727503990587,6.17647024,2687.3,2687.2,0.8554]
[1727503990780,9.17647024,2687.3,2687.2,0.8554]
[1727503990980,10.68542704,2687.3,2687.2,0.8554]
[1727503991229,8.36412988,2687.3,2687.2,0.8554]
[1727503991437,13.6223099,2687.3,2687.2,0.8554]
[1727503991650,13.6223099,2687.3,2687.2,0.03695421]
[1727503991945,14.01139696,2687.3,2687.2,0.03695421]
[1727503992296,15.83148009,2687.3,2687.2,0.03695421]
[1727503992692,13.12330007,2687.3,2687.2,0.03695421]
[1727503992991,15.44239303,2687.3,2687.2,0.03695421]
[1727503993196,12.73421301,2687.3,2687.2,0.03695421]
[1727503993395,13.12330554,2687.3,2687.2,0.03695421]
[1727503994419,15.8315688,2687.3,2687.2,0.03695421]
[1727503994812,13.12330554,2687.3,2687.2,0.03695421]
[1727503995014,15.44230171,2687.3,2687.2,0.03695421]
[1727503995234,12.73421301,2687.3,2687.2,0.03695421]
[1727503995915,3.7222,2686.6,2686.0,7.10193999]
[1727503996100,0.77387389,2686.2,2686.0,8.18443599]
[1727503996463,0.77387389,2686.2,2686.0,4.805396]
[1727503996598,0.77387389,2686.2,2685.5,3.72365]
[1727503996599,1.24356824,2686.1,2685.5,3.72365]
[1727503996798,0.773964,2685.8,2685.5,3.72361]
[1727503997011,0.773964,2685.7,2685.5,4.433875]
[1727503997315,0.08084284,2685.7,2685.6,3.72356]
[1727503997516,0.773964,2685.9,2685.7,3.72338]
[1727503997715,0.773964,2685.9,2685.7,4.8770095]
[1727503998233,0.773964,2685.9,2685.7,1.1536295]
[1727503999626,0.08089036,2685.8,2685.7,1.1536295]
[1727504002713,0.773964,2686.0,2685.7,1.1536295]
[1727504002907,0.773964,2686.0,2685.8,4.21099095]
[1727504003105,0.08055876,2685.9,2685.8,4.21099095]
[1727504004048,0.08055876,2685.9,2685.7,3.37903999]
[1727504004250,0.08055876,2685.9,2685.5,3.37903999]
[1727504004431,0.08055876,2685.9,2684.5,3.81254519]
[1727504004432,0.773964,2685.6,2685.1,3.72415]
[1727504004631,0.773964,2685.7,2685.2,8.158499]
[1727504004841,0.08027048,2685.5,2685.2,3.72409]
[1727504005149,0.08025133,2685.4,2685.2,3.72409]
[1727504005299,0.773964,2685.7,2685.3,4.096379]
[1727504006045,0.773964,2685.7,2685.4,3.72381]
[1727504006251,0.773964,2685.8,2685.4,3.72381]
[1727504006459,5.65806,2685.9,2685.4,4.8437449]
[1727504006757,0.773964,2685.7,2685.4,1.1199349]
[1727504006912,4.497404,2685.7,2685.2,7.10311999]
[1727504007117,0.08010593,2685.6,2685.2,7.10311999]
[1727504007312,0.08010593,2685.6,2685.2,3.72408]
[1727504007611,0.08010593,2685.6,2685.2,4.806767]
[1727504008018,0.08010593,2685.6,2685.2,8.18580699]
[1727504008227,0.08010593,2685.6,2685.4,3.72379]
[1727504008459,0.773964,2685.8,2685.4,3.72379]
[1727504008671,0.08025483,2685.5,2685.4,3.72379]
[1727504008887,0.773964,2685.9,2685.5,3.72369]
[1727504009049,0.773964,2686.0,2685.6,7.10257999]
[1727504009234,0.773964,2686.0,2685.6,3.37903999]
[1727504009433,0.773964,2686.1,2685.6,7.81285299]
[1727504009677,0.773964,2686.2,2685.6,7.10257999]
[1727504009834,0.773964,2686.2,2685.7,3.72341]
[1727504010034,4.883616,2686.3,2685.7,3.72341]
[1727504010035,4.496634,2686.3,2685.7,3.72341]
[1727504010283,0.773964,2686.2,2685.7,3.72341]
[1727504010486,0.85475215,2686.2,2685.7,3.72341]
[1727504011733,0.773964,2686.1,2685.4,3.37903999]
[1727504011934,0.85467193,2686.1,2685.6,7.44694]
[1727504012370,0.85467193,2686.1,2685.6,10.82597999]
[1727504012575,0.85467193,2686.1,2685.7,3.72341]
[1727504012939,0.85467193,2686.1,2685.6,7.10249999]
[1727504013142,0.85467193,2686.1,2685.6,7.81274999]
[1727504013760,0.85467193,2686.1,2685.6,4.43371]
[1727504014501,0.85467193,2686.1,2685.6,8.1572]
[1727504014790,4.57761193,2686.1,2685.6,0.71025]
[1727504015491,3.72308,2686.0,2685.4,7.10273999]
[1727504015692,7.44621,2686.0,2685.4,7.10273999]
[1727504015994,0.08070056,2685.9,2685.4,7.10273999]
[1727504016977,0.08070056,2685.9,2685.5,3.72358]
[1727504017162,0.08070056,2685.9,2685.6,1.082632]
[1727504017553,0.08070056,2685.9,2685.6,4.806182]
[1727504017893,0.773964,2686.3,2686.1,3.72286]
[1727504018193,4.54627406,2686.5,2686.0,3.72298]
[1727504018395,0.82396406,2686.5,2686.0,3.72298]
[1727504018603,4.54633406,2686.5,2686.0,3.72298]
[1727504019389,3.72248,2686.4,2685.9,7.10210999]
[1727504019591,3.72248,2686.4,2685.9,7.81232099]
[1727504020297,4.496444,2686.4,2685.9,7.81232099]
[1727504021000,0.773964,2686.4,2685.9,7.81232099]
[1727504021203,0.773964,2686.4,2685.9,4.433281]
[1727504021427,0.078279,2686.3,2685.9,4.433231]
[1727504022716,0.852243,2686.3,2685.9,4.433231]
[1727504022918,0.078279,2686.3,2685.9,4.433231]
[1727504023520,0.852243,2686.3,2685.9,4.433231]
[1727504024384,0.852243,2686.3,2685.9,8.156301]
[1727504024809,0.773964,2686.2,2685.9,4.433231]
[1727504025192,0.07808347,2686.1,2685.9,4.433231]
[1727504025397,0.85204747,2686.1,2685.9,0.710211]
[1727504025620,0.07808347,2686.1,2685.8,3.72325]
[1727504026586,0.85204747,2686.1,2685.8,3.72325]
[1727504027022,0.85204747,2686.1,2685.7,3.72336]
[1727504028001,0.85204747,2686.1,2685.9,3.72307]
[1727504028203,0.85204747,2686.1,2685.9,8.15683854]
[1727504028418,0.85204747,2686.1,2685.9,4.43376854]
[1727504029533,0.773964,2686.0,2685.9,4.43376854]
[1727504029919,0.85182793,2686.0,2685.9,4.43376854]
[1727504030732,0.07786393,2686.0,2685.9,4.43376854]
[1727504031317,0.85182793,2686.0,2685.9,4.43376854]
[1727504032432,1.23880993,2686.0,2685.9,4.43376854]
[1727504033091,0.07786393,2686.0,2685.9,4.43376854]
[1727504033291,1.23880993,2686.0,2685.9,4.43376854]
[1727504034339,1.62561172,2686.0,2685.9,4.43376854]
[1727504034827,0.07786393,2686.0,2685.9,4.43376854]
[1727504035033,1.62561172,2686.0,2685.9,4.43376854]
[1727504036387,1.63061702,2686.0,2685.9,4.43376854]
[1727504036804,0.07786393,2686.0,2685.9,4.43376854]
[1727504037626,2.01591287,2686.0,2685.9,4.43376854]
[1727504037831,1.63075187,2686.0,2685.9,4.43376854]
[1727504038190,1.63075187,2686.0,2685.9,5.99348781]
[1727504038843,1.63075187,2686.0,2685.9,3.72314]
[1727504040944,2.01918158,2686.0,2685.9,3.72314]
[1727504041620,0.07786393,2686.0,2685.9,3.72314]
[1727504041815,0.07786393,2686.0,2685.7,3.72333]
[1727504042016,1.55323039,2685.8,2685.7,3.72333]
[1727504042218,0.07778207,2685.8,2685.7,3.72342]
[1727504042419,0.07778207,2685.8,2685.7,4.62407993]
[1727504042754,2.01928419,2685.8,2685.4,9.00720927]
[1727504042955,0.7766411,2685.5,2685.4,5.28344927]
[1727504043430,0.85504132,2685.5,2685.4,5.28344927]
[1727504043626,1.24336187,2685.5,2685.1,4.47225]
[1727504043876,3.72357,2685.6,2684.8,3.72457]
[1727504043877,1.55328221,2685.3,2684.8,3.72457]
[1727504044073,1.99150218,2685.4,2684.8,5.28427927]
[1727504044074,0.77651797,2684.9,2684.8,5.28427927]
[1727504044231,1.94103702,2684.9,2684.8,5.28427927]
[1727504044432,0.0771284,2684.9,2684.8,6.1851872]
[1727504044862,1.24190536,2684.9,2684.8,6.1851872]
[1727504045739,0.0771284,2684.9,2684.8,6.1851872]
[1727504046232,0.85296434,2684.9,2684.8,8.00700264]
[1727504047266,0.0771284,2684.9,2684.8,8.00700264]
[1727504047466,0.85275775,2684.9,2684.8,8.00700264]
[1727504049509,0.0771284,2684.9,2684.8,8.00700264]
[1727504049710,0.85269852,2684.9,2684.8,8.00700264]
[1727504049838,0.77557012,2684.9,2684.8,8.00700264]
[1727504050041,0.85214675,2684.9,2684.8,8.00700264]
[1727504050791,0.85214675,2684.9,2684.8,3.72456]
[1727504052480,0.07657663,2684.9,2684.8,3.72456]
[1727504052846,0.77535529,2684.9,2684.8,3.72456]
[1727504053047,0.85201498,2684.9,2684.8,3.72456]
[1727504055247,0.07665969,2684.9,2684.8,3.72456]
[1727504057246,0.07665969,2684.9,2684.8,3.8111396]
[1727504057446,0.77535529,2685.1,2684.9,3.7245]
[1727504057688,0.07659275,2685.0,2684.9,3.7245]
[1727504058042,0.85194804,2685.0,2684.9,3.7245]
[1727504058246,0.07659275,2685.0,2684.9,3.8110796]
[1727504058447,0.85194804,2685.0,2684.9,3.8110796]
[1727504059312,0.07659275,2685.0,2684.9,3.8110796]
[1727504060913,0.85194804,2685.0,2684.9,3.8110796]
[1727504061426,0.07659275,2685.0,2684.9,3.8110796]
[1727504064018,0.07659275,2685.0,2684.9,4.97729157]
[1727504064219,0.77535529,2685.4,2685.2,3.72411]
[1727504064375,0.77535529,2685.4,2685.3,3.72397]
[1727504064720,0.77535529,2685.5,2685.2,7.10563471]
[1727504064921,2.06913293,2685.6,2685.4,3.72384]
[1727504064922,1.68145529,2685.6,2685.4,3.72384]
[1727504065243,1.68145529,2685.6,2685.5,3.7237]
[1727504065518,1.16303293,2685.7,2685.5,0.744766]
[1727504065519,0.77535529,2685.7,2685.5,0.744766]
[1727504065727,1.68145529,2685.8,2685.6,3.72356]
[1727504066222,1.68145529,2685.8,2685.5,3.72368]
[1727504066761,0.77535529,2685.7,2685.5,3.72368]
[1727504067534,0.07730959,2685.6,2685.5,3.72368]
[1727504068037,1.68145529,2685.8,2685.5,3.72368]
[1727504068247,0.85274513,2685.7,2685.5,5.28386943]
[1727504068803,0.77535529,2685.6,2685.5,5.28386943]
[1727504069243,0.85266488,2685.6,2685.2,9.00827943]
[1727504069444,0.77475862,2685.5,2685.3,3.7239]
[1727504069642,0.07730037,2685.4,2685.3,3.7239]
[1727504070151,0.77475862,2685.6,2685.3,3.7239]
[1727504070642,0.0773455,2685.5,2685.3,3.7239]
[1727504070843,0.85210412,2685.5,2685.3,3.7239]
[1727504072238,0.85210412,2685.5,2685.2,5.28418943]
[1727504072747,0.85210412,2685.5,2685.3,3.72394]
[1727504073045,0.85210412,2685.5,2685.4,3.72384]
[1727504073759,0.85210412,2685.5,2685.4,5.28402943]
[1727504076436,0.0773455,2685.5,2685.4,5.28402943]
[1727504077129,0.0773455,2685.5,2685.4,3.72384]
[1727504077867,0.85256561,2685.5,2685.4,3.72384]
[1727504080069,0.85269351,2685.5,2685.4,3.72384]
[1727504080294,0.85276579,2685.5,2685.4,5.28402943]
[1727504080458,0.85279778,2685.5,2685.4,5.28402943]
[1727504080770,0.0773455,2685.5,2685.4,5.28402943]
[1727504083234,1.24037843,2685.5,2685.4,5.28402943]
[1727504085396,1.24037843,2685.5,2685.4,6.18482837]
[1727504085597,0.85342952,2685.5,2685.4,7.08462837]
[1727504089366,0.0773455,2685.5,2685.4,7.08462837]
[1727504089800,0.77608402,2685.7,2685.6,3.72356]
[1727504090001,0.7762876,2685.7,2685.6,5.28374943]
[1727504090166,1.16303293,2685.8,2685.7,3.72342]
[1727504090824,1.24067509,2685.8,2685.7,3.72342]
[1727504091028,0.85392556,2685.8,2685.7,4.62413694]
[1727504091400,0.07764216,2685.8,2685.7,4.62413694]
[1727504097952,0.7762834,2686.0,2685.9,3.72314]
[1727504098153,0.77579583,2686.0,2685.9,5.28332943]
[1727504098343,1.16303293,2686.1,2685.9,5.28332943]
[1727504098665,0.77579829,2686.0,2685.9,5.28332943]
[1727504099166,1.16303293,2686.0,2685.9,5.28332943]
[1727504100253,1.24109182,2686.0,2685.9,5.28332943]
[1727504100511,0.85394631,2686.0,2685.9,6.18398937]
[1727504100676,0.07805889,2686.0,2685.9,6.18398937]
[1727504101494,0.07805889,2686.0,2685.6,3.72347]
[1727504101681,0.77594772,2685.9,2685.8,1.56018943]
[1727504101905,0.85415235,2685.9,2685.8,5.28346943]
[1727504102107,0.07820463,2685.9,2685.8,6.19159259]
[1727504102283,0.85415235,2685.9,2685.8,5.28346943]
[1727504102684,0.07820463,2685.9,2685.8,5.28346943]
[1727504103430,0.07820463,2685.9,2685.8,7.67830348]
[1727504104042,0.07820463,2685.9,2685.8,8.15749919]
[1727504104259,0.77594772,2686.5,2686.4,3.72245]
[1727504104552,1.16303293,2686.6,2686.4,5.28263943]
[1727504104553,0.77594772,2686.6,2686.4,5.28263943]
[1727504104729,0.77594772,2686.5,2686.4,5.28263943]
[1727504104927,0.77594772,2686.6,2686.5,3.72231]
[1727504105461,1.16303293,2686.8,2686.5,3.72231]
[1727504105462,0.77594772,2686.7,2686.6,3.72217]
[1727504105652,0.77594772,2686.8,2686.7,5.28221943]
[1727504106141,1.16303293,2686.8,2686.7,1.56018943]
[1727504106344,1.16303293,2686.8,2686.7,5.28221943]
[1727504106655,0.77501985,2686.9,2686.8,3.72189]
[1727504106951,2.37287445,2687.0,2686.9,3.72176]
[1727504107135,2.37287445,2687.0,2686.9,5.25911394]
[1727504107136,1.5978546,2687.0,2686.9,5.25911394]
[1727504107336,1.66954285,2687.0,2686.9,5.25911394]
[1727504107855,1.66954285,2687.0,2686.9,8.33353521]
[1727504108003,1.66954285,2687.0,2686.9,8.25911394]
[1727504108200,1.66954285,2687.0,2686.9,11.63402424]
[1727504108506,1.5978546,2687.0,2686.9,11.63402424]
[1727504109102,0.8901,2687.8,2687.7,3.72065]
[1727504109103,0.77501985,2687.8,2687.7,3.72065]
[1727504109312,0.77501985,2688.2,2687.7,3.3749103]
[1727504109633,0.8901,2688.3,2688.1,7.0949003]
[1727504110513,0.8901,2688.3,2688.0,3.72012]
[1727504110719,0.8901,2688.3,2688.0,3.72022]
[1727504110933,0.0714963,2688.2,2687.9,3.3749103]
[1727504111275,0.8401,2688.3,2687.9,3.3749103]
[1727504111420,0.0714963,2688.2,2687.9,3.3749103]
[1727504111627,0.8401,2688.3,2687.9,3.3749103]
[1727504111959,0.0714963,2688.2,2687.9,3.3749103]
[1727504112269,0.8401,2688.3,2687.9,3.3749103]
[1727504112561,0.0714963,2688.2,2688.0,3.72022]
[1727504113068,0.8401,2688.3,2688.1,7.0950003]
[1727504113736,3.76934006,2688.7,2688.1,7.0950003]
[1727504114067,0.9172,2688.6,2688.1,7.0950003]
[1727504114237,0.9172,2688.6,2688.3,3.7198]
[1727504114578,0.07178028,2688.5,2688.3,3.7198]
[1727504115083,0.07178028,2688.5,2687.2,3.72126]
[1727504115084,0.9172,2687.8,2687.2,3.72126]
[1727504115225,0.9172,2687.8,2687.0,7.0964203]
[1727504115226,4.63783,2687.8,2687.0,7.0964203]
[1727504115431,0.9172,2687.5,2687.0,4.22125717]
[1727504115683,0.07106279,2687.4,2687.0,3.72151]
[1727504116417,0.07106279,2687.4,2686.9,7.44342]
[1727504116616,0.07106279,2687.4,2686.9,3.72166]
[1727504116827,0.07106279,2687.4,2686.9,4.80351403]
[1727504117181,3.79215279,2687.4,2686.9,1.08185403]
[1727504117381,3.79215279,2687.4,2686.8,3.3749103]
[1727504118083,0.07106279,2687.4,2686.8,3.3749103]
[1727504118481,0.07106279,2687.4,2686.9,3.72162]
[1727504118711,0.07106279,2687.4,2686.9,7.4433]
[1727504119124,0.07106279,2687.4,2687.0,3.72151]
[1727504119324,0.07106279,2687.4,2686.9,4.80344103]
[1727504119533,0.07106279,2687.4,2687.0,3.72161]
[1727504119921,0.9172,2687.3,2686.7,3.72194]
[1727504120243,0.07090256,2687.2,2686.7,3.72194]
[1727504121508,0.07090256,2687.2,2686.6,3.72208]
[1727504121509,3.79235256,2687.2,2686.6,3.72208]
[1727504121717,0.9172,2687.1,2686.6,3.72208]
[1727504121920,0.07035641,2687.0,2686.7,3.72195]
[1727504122307,0.07035641,2687.0,2686.8,3.72189]
[1727504122901,0.07035641,2687.0,2686.7,3.72192]
[1727504123114,0.07035641,2687.0,2686.6,3.72209]
[1727504123994,0.07035641,2687.0,2686.6,7.44417]
[1727504124538,0.07035641,2687.0,2686.7,3.72194]
[1727504125800,0.07035641,2687.0,2686.6,3.72208]
[1727504126001,0.07035641,2687.0,2686.9,3.72176]
[1727504126545,0.9172,2687.3,2686.9,3.72176]
[1727504126693,0.06999682,2687.0,2686.9,3.72176]
[1727504126892,0.9172,2687.3,2686.9,3.72176]
[1727504127093,0.07015708,2687.2,2686.9,3.72176]
[1727504127304,0.9172,2687.3,2686.8,3.72189]
[1727504127537,0.07015708,2687.2,2686.8,3.72189]
[1727504127937,0.9172,2687.3,2686.8,7.4437]
[1727504128149,0.07007695,2687.1,2686.8,7.4437]
[1727504128442,0.9172,2687.3,2686.8,7.4437]
[1727504128443,0.07015708,2687.2,2686.8,3.72181]
[1727504128641,0.9172,2687.3,2686.8,3.72181]
[1727504128642,0.06999682,2687.0,2686.8,3.72181]
[1727504128945,0.06991669,2686.9,2686.8,3.72181]
[1727504129395,0.9172,2687.3,2686.8,3.72181]
[1727504129595,0.06991669,2686.9,2686.8,3.72181]
[1727504129821,0.9172,2687.3,2687.0,3.7216]
[1727504130813,0.07015708,2687.2,2687.0,3.7216]
[1727504131336,0.07007695,2687.1,2687.0,3.7216]
[1727504131730,0.9172,2687.3,2687.0,3.7216]
[1727504132047,0.07015708,2687.2,2687.1,3.72148]
[1727504132231,0.10736537,2687.2,2687.1,3.72148]
[1727504132432,0.9172,2687.6,2687.1,4.89083904]
[1727504132615,0.10736978,2687.2,2687.1,4.89083904]
[1727504132820,0.9172,2687.6,2687.1,4.89083904]
[1727504133004,0.10736978,2687.2,2687.1,4.89083904]
[1727504133205,0.9172,2687.6,2687.1,4.89083904]
[1727504133700,0.10760596,2687.5,2687.2,3.72126]
[1727504134710,0.10760596,2687.5,2687.3,7.44223]
[1727504134918,0.10760596,2687.5,2687.3,3.72111]
[1727504135313,0.10760596,2687.5,2687.4,3.72106]
[1727504135527,0.10760596,2687.5,2687.4,3.79547277]
[1727504135745,1.64839477,2687.9,2687.4,3.72106]
[1727504136048,0.10784719,2687.5,2687.4,3.72106]
[1727504136244,1.64839477,2687.9,2687.4,3.72106]
[1727504136403,0.10785157,2687.5,2687.4,3.72106]
[1727504136606,1.64839477,2687.9,2687.4,4.88315921]
[1727504136807,0.10785157,2687.5,2687.4,4.88315921]
[1727504137007,1.64839477,2687.9,2687.4,4.88315921]
[1727504137234,0.10785157,2687.5,2687.4,4.88315921]
[1727504137446,1.64839477,2687.9,2687.4,4.88315921]
[1727504137649,0.10785157,2687.5,2687.4,4.88315921]
[1727504138150,5.36877477,2687.9,2687.4,4.88315921]
[1727504138454,0.10785157,2687.5,2687.4,4.88315921]
[1727504138753,1.64839477,2687.9,2687.5,3.72092]
[1727504139255,4.49112477,2687.8,2687.3,4.52502178]
[1727504139420,4.59929577,2687.8,2687.3,4.52502178]
[1727504139616,0.77059477,2687.7,2687.3,4.52502178]
[1727504139832,4.59929577,2687.8,2687.3,4.52502178]
[1727504140033,0.10801359,2687.6,2687.3,4.52502178]
[1727504140256,0.87868707,2687.7,2687.3,3.72111]
[1727504140404,0.10793487,2687.5,2687.3,3.72111]
[1727504140601,0.77059477,2687.7,2687.3,3.72111]
[1727504140848,1.75625092,2687.4,2686.9,3.72167]
[1727504141143,0.10784759,2687.3,2686.9,3.72167]
[1727504141755,0.87844236,2687.3,2686.9,3.72167]
[1727504142055,0.87844236,2687.3,2686.7,12.322197]
[1727504142056,0.8778,2687.1,2686.7,11.20193]
[1727504142204,0.8778,2687.1,2686.7,3.72193]
[1727504142406,0.1075149,2687.0,2686.7,3.72193]
[1727504143112,0.1075149,2687.0,2686.8,3.72189]
[1727504143313,0.1075149,2687.0,2686.6,3.72216]
[1727504143653,0.1075149,2687.0,2686.7,3.72201]
[1727504143804,0.87810967,2687.0,2686.7,3.72201]
[1727504145045,0.87810967,2687.0,2686.5,3.72218]
[1727504145253,0.77059477,2686.9,2686.5,4.56650313]
[1727504145413,0.87810967,2687.0,2686.5,4.56650313]
[1727504145642,0.87803092,2686.9,2686.5,4.56650313]
[1727504145841,0.87803092,2686.9,2686.7,3.72196]
[1727504146181,0.87803092,2686.9,2686.8,3.72189]
[1727504146182,0.10743615,2686.9,2686.8,3.72189]
[1727504147695,0.87803092,2686.9,2686.8,3.72189]
[1727504148013,0.10743615,2686.9,2686.8,4.466296]
[1727504148286,0.10743615,2686.9,2686.8,3.72189]
[1727504148658,0.77059477,2687.1,2686.8,3.79632043]